[Event "GrandPrix_30.05"]
[Site "Chess.com"]
[Date "2020.05.30"]
[Round "6"]
[White "hypert"]
[Black "grzechu96"]
[Result "0-1"]
[WhiteElo "2154"]
[BlackElo "2389"]
[TimeControl "600+2"]
[EndTime "10:59:32 PDT"]
[Termination "grzechu96 won by resignation"]

1. e4 {[%clk 0:10:01.9]} 1... c5 {[%clk 0:10:01]} 2. Nf3 {[%clk 0:10:02.8]} 2...
d6 {[%clk 0:10:01.8]} 3. Bb5+ {[%clk 0:10:02.8]} 3... Nd7 {[%clk 0:10:02.4]} 4.
O-O {[%clk 0:10:02.7]} 4... a6 {[%clk 0:10:03.1]} 5. Bxd7+ {[%clk 0:09:59.4]}
5... Bxd7 {[%clk 0:09:55.7]} 6. Re1 {[%clk 0:10:00.2]} 6... Nf6 {[%clk
0:09:51.6]} 7. e5 {[%clk 0:10:00.6]} 7... dxe5 {[%clk 0:09:49.1]} 8. Nxe5 {[%clk
0:10:02.5]} 8... e6 {[%clk 0:09:48.9]} 9. d3 {[%clk 0:09:57.5]} 9... Bd6 {[%clk
0:09:47.1]} 10. Bf4 {[%clk 0:09:39.6]} 10... Qc7 {[%clk 0:09:38.6]} 11. a4
{[%clk 0:09:27.2]} 11... O-O {[%clk 0:09:22.5]} 12. a5 {[%clk 0:09:20.7]} 12...
Nd5 {[%clk 0:08:59.5]} 13. Bg3 {[%clk 0:09:14.4]} 13... f6 {[%clk 0:09:00.2]}
14. Nxd7 {[%clk 0:08:52.4]} 14... Qxd7 {[%clk 0:09:02.1]} 15. Bxd6 {[%clk
0:08:53.1]} 15... Qxd6 {[%clk 0:09:04]} 16. Nd2 {[%clk 0:08:54]} 16... e5 {[%clk
0:09:01.8]} 17. Nc4 {[%clk 0:08:50.7]} 17... Qc6 {[%clk 0:08:59.4]} 18. Qf3
{[%clk 0:08:27]} 18... Rad8 {[%clk 0:08:59.2]} 19. h4 {[%clk 0:08:22.4]} 19...
Nb4 {[%clk 0:08:58.1]} 20. Qxc6 {[%clk 0:08:17.9]} 20... Nxc6 {[%clk 0:09:00]}
21. Rad1 {[%clk 0:08:14.4]} 21... Rd4 {[%clk 0:08:57.1]} 22. g3 {[%clk
0:08:12.5]} 22... Rfd8 {[%clk 0:08:58.3]} 23. f3 {[%clk 0:07:52.9]} 23... Kf7
{[%clk 0:07:36.5]} 24. Kf2 {[%clk 0:07:51.8]} 24... h5 {[%clk 0:07:34.7]} 25.
Re4 {[%clk 0:07:38.5]} 25... Nb4 {[%clk 0:07:04.3]} 26. Rd2 {[%clk 0:06:39.2]}
26... Ke6 {[%clk 0:06:53.5]} 27. Rde2 {[%clk 0:06:12.7]} 27... Nc6 {[%clk
0:05:59]} 28. f4 {[%clk 0:05:47.1]} 28... Rxe4 {[%clk 0:05:56.7]} 29. Rxe4
{[%clk 0:05:37.1]} 29... Rd4 {[%clk 0:05:21.1]} 30. Re3 {[%clk 0:04:39.5]} 30...
Kf5 {[%clk 0:03:44.2]} 31. fxe5 {[%clk 0:04:35]} 31... Nxe5 {[%clk 0:03:44.9]}
32. Nxe5 {[%clk 0:04:30.5]} 32... fxe5 {[%clk 0:03:46.8]} 33. b3 {[%clk
0:03:34.6]} 33... e4 {[%clk 0:03:40.1]} 34. dxe4+ {[%clk 0:03:35.5]} 34... Rxe4
{[%clk 0:03:40.6]} 35. Rc3 {[%clk 0:03:36.6]} 35... Re5 {[%clk 0:03:40.9]} 36.
Kf3 {[%clk 0:03:29.4]} 36... Rd5 {[%clk 0:03:39.5]} 37. Rc4 {[%clk 0:03:24.5]}
37... g6 {[%clk 0:03:36.9]} 38. Ke3 {[%clk 0:02:56.2]} 38... Ke5 {[%clk
0:03:35]} 39. Rf4 {[%clk 0:02:38.8]} 39... Ke6 {[%clk 0:03:11.6]} 40. Rf8 {[%clk
0:02:27.6]} 40... c4 {[%clk 0:03:11.5]} 41. b4 {[%clk 0:02:20.4]} 41... Rb5
{[%clk 0:03:03.9]} 42. c3 {[%clk 0:02:19.3]} 42... Rd5 {[%clk 0:03:05.2]} 43.
Re8+ {[%clk 0:01:54.3]} 43... Kd7 {[%clk 0:02:10.7]} 44. Rg8 {[%clk 0:01:53.9]}
44... Rd3+ {[%clk 0:02:11.1]} 45. Kf4 {[%clk 0:01:29.8]} 45... Rxc3 {[%clk
0:02:11.7]} 46. Rxg6 {[%clk 0:01:30.6]} 46... Rb3 {[%clk 0:02:06.8]} 47. Ke4
{[%clk 0:00:42.3]} 47... Rxb4 {[%clk 0:01:59.5]} 48. Kd4 {[%clk 0:00:40.3]}
48... Rb5 {[%clk 0:01:53]} 49. Kxc4 {[%clk 0:00:32.3]} 49... Rxa5 {[%clk
0:01:53.6]} 50. Kb4 {[%clk 0:00:31.4]} 50... Rf5 {[%clk 0:01:33.3]} 51. Rg7+
{[%clk 0:00:23]} 51... Kc6 {[%clk 0:01:33.7]} 52. Rg6+ {[%clk 0:00:24.3]} 52...
Kc7 {[%clk 0:01:35]} 53. Rg7+ {[%clk 0:00:25.3]} 53... Kb6 {[%clk 0:01:36.4]}
54. Rg6+ {[%clk 0:00:26.2]} 54... Ka7 {[%clk 0:01:37.7]} 55. Rg5 {[%clk
0:00:21.6]} 55... Rf3 {[%clk 0:01:37.9]} 56. Rg7 {[%clk 0:00:16.8]} 56... Re3
{[%clk 0:01:28.8]} 57. Ka5 {[%clk 0:00:15.4]} 57... Re5+ {[%clk 0:01:28.8]} 58.
Kb4 {[%clk 0:00:15.7]} 58... a5+ {[%clk 0:01:25.3]} 59. Ka4 {[%clk 0:00:15.9]}
59... Ka6 {[%clk 0:01:26.6]} 60. Rg5 {[%clk 0:00:12.8]} 60... Re4+ {[%clk
0:01:27.8]} 61. Kb3 {[%clk 0:00:14]} 61... a4+ {[%clk 0:01:01.4]} 62. Ka3 {[%clk
0:00:14.5]} 62... b5 {[%clk 0:01:01.4]} 63. Rxh5 {[%clk 0:00:15.2]} 63... Re3+
{[%clk 0:01:02.8]} 64. Kb4 {[%clk 0:00:14.5]} 64... Rb3+ {[%clk 0:01:04]} 65.
Kc5 {[%clk 0:00:15.3]} 65... Ka5 {[%clk 0:00:57.7]} 66. Rh8 {[%clk 0:00:12.3]}
66... Rc3+ {[%clk 0:00:59]} 67. Kd4 {[%clk 0:00:13.3]} 67... Rxg3 {[%clk
0:00:58.2]} 68. h5 {[%clk 0:00:14.3]} 68... Kb4 {[%clk 0:00:58.5]} 69. h6 {[%clk
0:00:15.6]} 69... a3 {[%clk 0:00:57]} 70. h7 {[%clk 0:00:13.6]} 70... Rh3 {[%clk
0:00:58]} 71. Kd5 {[%clk 0:00:07.4]} 71... Rh4 {[%clk 0:00:43.4]} 72. Kc6 {[%clk
0:00:06.2]} 72... Rh5 {[%clk 0:00:43.8]} 73. Kb6 {[%clk 0:00:03]} 73... Rh6+
{[%clk 0:00:43.9]} 74. Kc7 {[%clk 0:00:04.2]} 74... a2 {[%clk 0:00:43]} 75. Ra8
{[%clk 0:00:02.3]} 75... Rxh7+ {[%clk 0:00:43.8]} 76. Kb6 {[%clk 0:00:03.8]}
76... Rh6+ {[%clk 0:00:41.5]} 77. Kc7 {[%clk 0:00:05.3]} 77... Kb3 {[%clk
0:00:42.4]} 0-1

[Event "GrandPrix_30.05"]
[Site "Chess.com"]
[Date "2020.05.30"]
[Round "6"]
[White "kirillshevchenko"]
[Black "Guenplen"]
[Result "0-1"]
[WhiteElo "2664"]
[BlackElo "2601"]
[TimeControl "600+2"]
[EndTime "10:59:47 PDT"]
[Termination "Guenplen won by resignation"]

1. e4 {[%clk 0:10:01.9]} 1... c5 {[%clk 0:10:00.4]} 2. Nf3 {[%clk 0:10:02.4]}
2... e6 {[%clk 0:10:01.8]} 3. d4 {[%clk 0:10:02.5]} 3... cxd4 {[%clk 0:10:03.1]}
4. Nxd4 {[%clk 0:10:04.4]} 4... Nf6 {[%clk 0:10:04.6]} 5. Nc3 {[%clk 0:10:05.4]}
5... Nc6 {[%clk 0:10:06]} 6. Nxc6 {[%clk 0:10:03.4]} 6... bxc6 {[%clk
0:10:07.9]} 7. e5 {[%clk 0:10:04.8]} 7... Nd5 {[%clk 0:10:09.2]} 8. Ne4 {[%clk
0:10:06.3]} 8... Bb7 {[%clk 0:10:10.2]} 9. Be2 {[%clk 0:10:04.4]} 9... c5 {[%clk
0:10:07.6]} 10. O-O {[%clk 0:10:00]} 10... Qc7 {[%clk 0:10:07.4]} 11. Nd6+
{[%clk 0:09:54.8]} 11... Bxd6 {[%clk 0:10:08.2]} 12. exd6 {[%clk 0:09:56.7]}
12... Qc6 {[%clk 0:10:09.5]} 13. f3 {[%clk 0:09:57.1]} 13... c4 {[%clk
0:10:10.8]} 14. Qd4 {[%clk 0:09:56.4]} 14... O-O {[%clk 0:10:11.5]} 15. Bxc4
{[%clk 0:09:43.3]} 15... Qxd6 {[%clk 0:10:09.9]} 16. b3 {[%clk 0:09:37.5]} 16...
Rfc8 {[%clk 0:09:51.5]} 17. Bb2 {[%clk 0:09:27.3]} 17... Qb6 {[%clk 0:09:50.6]}
18. Qxb6 {[%clk 0:08:28.6]} 18... Nxb6 {[%clk 0:09:52.5]} 19. Bd3 {[%clk
0:08:29.3]} 19... a5 {[%clk 0:09:47]} 20. Rfc1 {[%clk 0:07:22]} 20... d5 {[%clk
0:08:42.4]} 21. f4 {[%clk 0:03:59.1]} 21... Nd7 {[%clk 0:07:24.8]} 22. Bb5
{[%clk 0:03:19.3]} 22... Nc5 {[%clk 0:07:15.9]} 23. Bd4 {[%clk 0:02:42.2]} 23...
f6 {[%clk 0:06:32.4]} 24. Re1 {[%clk 0:02:32]} 24... Kf7 {[%clk 0:06:20]} 25. c4
{[%clk 0:01:51.2]} 25... dxc4 {[%clk 0:05:26.2]} 26. Bxc4 {[%clk 0:01:50.8]}
26... Bd5 {[%clk 0:05:26.2]} 27. Bxc5 {[%clk 0:01:19.5]} 27... Bxc4 {[%clk
0:04:21.8]} 28. Be3 {[%clk 0:00:50.7]} 28... Bd5 {[%clk 0:04:19.5]} 29. Rac1
{[%clk 0:00:38.9]} 29... Rxc1 {[%clk 0:04:12]} 30. Rxc1 {[%clk 0:00:39.4]} 30...
a4 {[%clk 0:04:13.6]} 31. Rc7+ {[%clk 0:00:33.4]} 31... Kg6 {[%clk 0:04:06.2]}
32. Ra7 {[%clk 0:00:30.5]} 32... Rc8 {[%clk 0:03:24.9]} 33. Rxa4 {[%clk
0:00:30.9]} 33... Rc2 {[%clk 0:03:26.3]} 34. g3 {[%clk 0:00:30.3]} 34... Kf5
{[%clk 0:03:20.5]} 35. Rd4 {[%clk 0:00:17.6]} 35... Rxa2 {[%clk 0:03:05.2]} 36.
b4 {[%clk 0:00:15.1]} 36... Kg4 {[%clk 0:01:55.1]} 37. Rd2 {[%clk 0:00:16.1]}
37... Ra1+ {[%clk 0:01:54]} 38. Kf2 {[%clk 0:00:17.5]} 38... Rh1 {[%clk
0:01:53.4]} 39. Ke2 {[%clk 0:00:04.2]} 39... Rxh2+ {[%clk 0:01:47.6]} 40. Bf2
{[%clk 0:00:04.4]} 40... Rh1 {[%clk 0:01:43.2]} 41. Be1 {[%clk 0:00:03.4]} 41...
h5 {[%clk 0:01:19.2]} 42. Kf2 {[%clk 0:00:02.6]} 42... Rh2+ {[%clk 0:01:07.8]}
43. Ke3 {[%clk 0:00:03.4]} 43... Rh1 {[%clk 0:01:09.3]} 44. Bf2 {[%clk 0:00:04]}
44... Rb1 {[%clk 0:01:07.7]} 45. Rd4 {[%clk 0:00:04.2]} 45... Rb3+ {[%clk
0:00:59]} 46. Ke2 {[%clk 0:00:05.1]} 46... Bf3+ {[%clk 0:00:54.7]} 47. Kf1
{[%clk 0:00:03.5]} 47... Rb1+ {[%clk 0:00:53]} 48. Be1 {[%clk 0:00:04.7]} 48...
Bd5 {[%clk 0:00:48.9]} 49. Kf2 {[%clk 0:00:04.7]} 49... Kf5 {[%clk 0:00:44.6]}
50. Bd2 {[%clk 0:00:04.3]} 50... Rb3 {[%clk 0:00:44]} 51. Be3 {[%clk 0:00:04.5]}
51... Rb2+ {[%clk 0:00:41.6]} 52. Bd2 {[%clk 0:00:04.9]} 52... Rb3 {[%clk
0:00:42.8]} 53. Be1 {[%clk 0:00:04.2]} 53... Be4 {[%clk 0:00:20.4]} 54. Ke2
{[%clk 0:00:04.2]} 54... g6 {[%clk 0:00:14.1]} 55. Kf2 {[%clk 0:00:03.4]} 55...
e5 {[%clk 0:00:11.3]} 56. fxe5 {[%clk 0:00:03.9]} 56... Kxe5 {[%clk 0:00:13.2]}
57. Rd8 {[%clk 0:00:03.4]} 57... Kf5 {[%clk 0:00:12.9]} 58. Ke2 {[%clk
0:00:03.7]} 58... g5 {[%clk 0:00:11.8]} 59. Rd4 {[%clk 0:00:03.2]} 59... Ke5
{[%clk 0:00:11.4]} 60. Rd8 {[%clk 0:00:04.2]} 60... Bf3+ {[%clk 0:00:09.2]} 61.
Kf2 {[%clk 0:00:04.5]} 61... Bg4 {[%clk 0:00:10.3]} 62. Re8+ {[%clk 0:00:03.7]}
62... Kf5 {[%clk 0:00:11.8]} 63. Rd8 {[%clk 0:00:03]} 63... Rf3+ {[%clk
0:00:11.7]} 64. Kg2 {[%clk 0:00:03.6]} 64... Rb3 {[%clk 0:00:13.3]} 65. Kf2
{[%clk 0:00:04.3]} 65... h4 {[%clk 0:00:13.7]} 66. gxh4 {[%clk 0:00:05.1]} 66...
gxh4 {[%clk 0:00:15.6]} 67. Rh8 {[%clk 0:00:03.5]} 67... h3 {[%clk 0:00:16.3]}
68. Kf1 {[%clk 0:00:04.2]} 68... Rb2 {[%clk 0:00:12.9]} 69. Bg3 {[%clk
0:00:04.7]} 69... Ke4 {[%clk 0:00:10.3]} 70. Bd6 {[%clk 0:00:04.7]} 70... Kf3
{[%clk 0:00:09.1]} 71. Ke1 {[%clk 0:00:05.7]} 71... Kg2 {[%clk 0:00:05.9]} 72.
Rf8 {[%clk 0:00:04.1]} 72... Rb1+ {[%clk 0:00:06.5]} 73. Kd2 {[%clk 0:00:04.2]}
73... Rd1+ {[%clk 0:00:08.1]} 0-1

[Event "GrandPrix_30.05"]
[Site "Chess.com"]
[Date "2020.05.30"]
[Round "6"]
[White "MiroVlasenko"]
[Black "SpasKozhuharov"]
[Result "1/2-1/2"]
[WhiteElo "2292"]
[BlackElo "2172"]
[TimeControl "600+2"]
[EndTime "11:00:08 PDT"]
[Termination "Game drawn by repetition"]

1. e4 {[%clk 0:10:01.9]} 1... c6 {[%clk 0:09:58.7]} 2. Nc3 {[%clk 0:09:53.5]}
2... d5 {[%clk 0:09:58.1]} 3. Qe2 {[%clk 0:09:50.7]} 3... d4 {[%clk 0:09:44.7]}
4. Nd1 {[%clk 0:09:51.1]} 4... e5 {[%clk 0:09:44.2]} 5. g3 {[%clk 0:09:41.7]}
5... h5 {[%clk 0:09:42.5]} 6. Nf3 {[%clk 0:09:31.6]} 6... Bd6 {[%clk 0:09:38.7]}
7. Bg2 {[%clk 0:09:27.7]} 7... c5 {[%clk 0:09:30.9]} 8. d3 {[%clk 0:09:19.9]}
8... Nc6 {[%clk 0:09:30.3]} 9. O-O {[%clk 0:09:10.9]} 9... Nge7 {[%clk
0:09:27.2]} 10. Nh4 {[%clk 0:09:09.1]} 10... Be6 {[%clk 0:09:13.3]} 11. f4
{[%clk 0:09:04.7]} 11... f6 {[%clk 0:09:13.9]} 12. b3 {[%clk 0:08:32.9]} 12...
Qd7 {[%clk 0:09:11.9]} 13. f5 {[%clk 0:08:28.6]} 13... Bf7 {[%clk 0:09:12.2]}
14. a4 {[%clk 0:08:27.8]} 14... b6 {[%clk 0:09:05.8]} 15. Nb2 {[%clk 0:08:26.5]}
15... a6 {[%clk 0:09:03]} 16. Bd2 {[%clk 0:08:16.5]} 16... O-O-O {[%clk
0:08:56.9]} 17. Nc4 {[%clk 0:08:10.6]} 17... Bc7 {[%clk 0:08:57.5]} 18. Ra2
{[%clk 0:07:55.6]} 18... Kb7 {[%clk 0:08:55.4]} 19. Rfa1 {[%clk 0:07:51.9]}
19... b5 {[%clk 0:08:48.5]} 20. axb5 {[%clk 0:07:48.5]} 20... axb5 {[%clk
0:08:50.4]} 21. Na5+ {[%clk 0:07:49]} 21... Bxa5 {[%clk 0:08:49.1]} 22. Bxa5
{[%clk 0:07:49.2]} 22... Ra8 {[%clk 0:08:50.5]} 23. Bd2 {[%clk 0:07:45.8]} 23...
Rxa2 {[%clk 0:08:46.1]} 24. Rxa2 {[%clk 0:07:46.6]} 24... Ra8 {[%clk 0:08:43.1]}
25. Rxa8 {[%clk 0:07:46.7]} 25... Kxa8 {[%clk 0:08:45]} 26. Bf3 {[%clk 0:07:48]}
26... Qe8 {[%clk 0:08:45.4]} 27. h3 {[%clk 0:07:36.3]} 27... Kb7 {[%clk
0:08:45.4]} 28. g4 {[%clk 0:07:27.6]} 28... hxg4 {[%clk 0:08:45.5]} 29. hxg4
{[%clk 0:07:28.9]} 29... Qa8 {[%clk 0:08:45.9]} 30. g5 {[%clk 0:07:17.2]} 30...
Qa2 {[%clk 0:08:40.9]} 31. Qd1 {[%clk 0:06:56.9]} 31... Nc8 {[%clk 0:07:58.6]}
32. g6 {[%clk 0:06:25.3]} 32... Bg8 {[%clk 0:07:41.9]} 33. Be2 {[%clk
0:06:25.7]} 33... Nd6 {[%clk 0:07:41]} 34. Bf3 {[%clk 0:05:55.3]} 34... c4
{[%clk 0:07:39.9]} 35. bxc4 {[%clk 0:05:55.6]} 35... bxc4 {[%clk 0:07:40.7]} 36.
dxc4 {[%clk 0:05:56.9]} 36... Nxc4 {[%clk 0:07:39.1]} 37. Bc1 {[%clk 0:05:48.7]}
37... Qb1 {[%clk 0:07:14.7]} 38. Ng2 {[%clk 0:05:04.7]} 38... Nb4 {[%clk
0:06:38.1]} 39. Ne1 {[%clk 0:05:00]} 39... Kb6 {[%clk 0:06:18.3]} 40. Be2 {[%clk
0:03:15.9]} 40... Na2 {[%clk 0:06:03.8]} 41. Nd3 {[%clk 0:02:58.4]} 41... Nc3
{[%clk 0:05:58.2]} 42. Qf1 {[%clk 0:02:51.9]} 42... Qxc2 {[%clk 0:05:57]} 43.
Bf3 {[%clk 0:02:43.6]} 43... Kb5 {[%clk 0:04:44.7]} 44. Ba3 {[%clk 0:02:00.8]}
44... Nd2 {[%clk 0:04:10.7]} 45. Ne1+ {[%clk 0:01:54.9]} 45... Nxf1 {[%clk
0:04:11]} 46. Nxc2 {[%clk 0:01:55.2]} 46... Nd2 {[%clk 0:04:12.6]} 47. Bg2
{[%clk 0:01:46]} 47... Ndxe4 {[%clk 0:04:09.9]} 48. Bf8 {[%clk 0:01:45.4]} 48...
d3 {[%clk 0:03:49.1]} 49. Ne3 {[%clk 0:01:45.6]} 49... d2 {[%clk 0:03:49.6]} 50.
Bxg7 {[%clk 0:01:40.9]} 50... Nd6 {[%clk 0:03:20.9]} 51. Bf3 {[%clk 0:01:16.4]}
51... Ne8 {[%clk 0:03:08.9]} 52. Bf8 {[%clk 0:01:02.7]} 52... e4 {[%clk
0:02:58.7]} 53. Bh5 {[%clk 0:00:59.8]} 53... Nd5 {[%clk 0:02:49.9]} 54. Nxd5
{[%clk 0:00:47.6]} 54... Bxd5 {[%clk 0:02:50.1]} 55. Bh6 {[%clk 0:00:48.5]}
55... Nd6 {[%clk 0:02:42.1]} 56. Bxd2 {[%clk 0:00:43.1]} 56... Nxf5 {[%clk
0:02:42.9]} 57. Bg4 {[%clk 0:00:41.9]} 57... Ne7 {[%clk 0:02:22.5]} 58. Bh5
{[%clk 0:00:34.2]} 58... Kc4 {[%clk 0:02:15.7]} 59. Kf2 {[%clk 0:00:30.9]} 59...
Kd3 {[%clk 0:02:03.2]} 60. Bf4 {[%clk 0:00:31.9]} 60... Nf5 {[%clk 0:01:58.4]}
61. Be2+ {[%clk 0:00:32.6]} 61... Kd4 {[%clk 0:01:59.1]} 62. Bg4 {[%clk
0:00:24.9]} 62... e3+ {[%clk 0:02:00.8]} 63. Ke2 {[%clk 0:00:25.8]} 63... Ke4
{[%clk 0:01:48.4]} 64. Bf3+ {[%clk 0:00:18.9]} 64... Kxf4 {[%clk 0:01:40.3]} 65.
Bxd5 {[%clk 0:00:19.7]} 65... Ng3+ {[%clk 0:01:03.4]} 66. Kd3 {[%clk 0:00:18.2]}
66... Nh5 {[%clk 0:01:04.7]} 67. Ke2 {[%clk 0:00:17.8]} 67... f5 {[%clk
0:01:01.6]} 68. Bf3 {[%clk 0:00:17.9]} 68... Ng7 {[%clk 0:00:53.2]} 69. Bd5
{[%clk 0:00:18.9]} 69... Ke5 {[%clk 0:00:53.6]} 70. Bb7 {[%clk 0:00:18.3]} 70...
f4 {[%clk 0:00:55.3]} 71. Bc8 {[%clk 0:00:18.9]} 71... Nh5 {[%clk 0:00:46.8]}
72. Ba6 {[%clk 0:00:15.8]} 72... Ng3+ {[%clk 0:00:35.9]} 73. Kf3 {[%clk
0:00:16.7]} 73... Nf5 {[%clk 0:00:37.2]} 74. Bd3 {[%clk 0:00:16.6]} 74... Nd4+
{[%clk 0:00:38.1]} 75. Kg2 {[%clk 0:00:15.9]} 75... f3+ {[%clk 0:00:37.1]} 76.
Kg3 {[%clk 0:00:17]} 76... Kf6 {[%clk 0:00:36.4]} 77. Be4 {[%clk 0:00:16.2]}
77... f2 {[%clk 0:00:31]} 78. Bd3 {[%clk 0:00:17.1]} 78... Nc6 {[%clk
0:00:17.7]} 79. Be2 {[%clk 0:00:12]} 79... Nd4 {[%clk 0:00:16.8]} 80. Bd3 {[%clk
0:00:12.6]} 80... Kg7 {[%clk 0:00:14.9]} 81. Kg2 {[%clk 0:00:12.2]} 81... Kf6
{[%clk 0:00:13.1]} 82. Kg3 {[%clk 0:00:13.2]} 1/2-1/2

[Event "GrandPrix_30.05"]
[Site "Chess.com"]
[Date "2020.05.30"]
[Round "6"]
[White "PavelShkapenko"]
[Black "Nuvas"]
[Result "1-0"]
[WhiteElo "2425"]
[BlackElo "2253"]
[TimeControl "600+2"]
[EndTime "11:00:30 PDT"]
[Termination "PavelShkapenko won by resignation"]

1. e4 {[%clk 0:10:00.3]} 1... c5 {[%clk 0:10:00.9]} 2. c3 {[%clk 0:10:01.3]}
2... Nf6 {[%clk 0:10:00.8]} 3. e5 {[%clk 0:10:02.3]} 3... Nd5 {[%clk 0:10:02.5]}
4. d4 {[%clk 0:10:03.8]} 4... cxd4 {[%clk 0:10:03.8]} 5. cxd4 {[%clk 0:10:05.4]}
5... d6 {[%clk 0:10:05.1]} 6. Nf3 {[%clk 0:10:05.6]} 6... Nc6 {[%clk 0:10:04.4]}
7. Bc4 {[%clk 0:10:06.3]} 7... dxe5 {[%clk 0:10:04.8]} 8. Nxe5 {[%clk
0:10:06.4]} 8... Be6 {[%clk 0:05:35.6]} 9. O-O {[%clk 0:09:50.8]} 9... g6 {[%clk
0:04:24.5]} 10. Qa4 {[%clk 0:07:39.5]} 10... Qd6 {[%clk 0:04:13.1]} 11. Bb5
{[%clk 0:07:11.3]} 11... Bd7 {[%clk 0:04:14.2]} 12. Nxd7 {[%clk 0:05:51.8]}
12... Qxd7 {[%clk 0:04:15.2]} 13. Nc3 {[%clk 0:05:40]} 13... Bg7 {[%clk
0:04:15.9]} 14. Bg5 {[%clk 0:05:30.8]} 14... h6 {[%clk 0:02:45.3]} 15. Bh4
{[%clk 0:04:08]} 15... g5 {[%clk 0:02:46.1]} 16. Bg3 {[%clk 0:04:09]} 16... O-O
{[%clk 0:02:45.8]} 17. Rac1 {[%clk 0:03:43.2]} 17... Nb6 {[%clk 0:02:39.5]} 18.
Qa3 {[%clk 0:03:28.9]} 18... Qxd4 {[%clk 0:01:50.7]} 19. Bxc6 {[%clk 0:02:02.2]}
19... bxc6 {[%clk 0:01:51.6]} 20. Qxe7 {[%clk 0:02:03.7]} 20... Rfe8 {[%clk
0:01:53]} 21. Qb7 {[%clk 0:02:02]} 21... Nc4 {[%clk 0:01:48.6]} 22. Qxc6 {[%clk
0:01:53.4]} 22... Rac8 {[%clk 0:00:49.5]} 23. Qb7 {[%clk 0:01:10.2]} 23... Qb6
{[%clk 0:00:50.6]} 24. Qxb6 {[%clk 0:01:09.8]} 24... axb6 {[%clk 0:00:51.9]} 25.
Nd5 {[%clk 0:00:55.9]} 25... Bxb2 {[%clk 0:00:45.8]} 26. Rb1 {[%clk 0:00:54.1]}
26... Be5 {[%clk 0:00:05.6]} 27. Bxe5 {[%clk 0:00:48.6]} 27... Rxe5 {[%clk
0:00:07.5]} 28. Nxb6 {[%clk 0:00:49.5]} 28... Nxb6 {[%clk 0:00:09.1]} 29. Rxb6
{[%clk 0:00:50.6]} 29... Rc2 {[%clk 0:00:10.1]} 30. Rxh6 {[%clk 0:00:40.2]}
30... Rxa2 {[%clk 0:00:11.1]} 31. Rf6 {[%clk 0:00:40.5]} 31... Kg7 {[%clk
0:00:11.8]} 32. Rf3 {[%clk 0:00:41.5]} 32... Re6 {[%clk 0:00:05.8]} 33. g3
{[%clk 0:00:42.2]} 33... Rf6 {[%clk 0:00:07.1]} 34. Rxf6 {[%clk 0:00:42.4]}
34... Kxf6 {[%clk 0:00:09]} 35. Kg2 {[%clk 0:00:43.6]} 35... Kg6 {[%clk
0:00:10.6]} 36. Rb1 {[%clk 0:00:44.2]} 36... f6 {[%clk 0:00:12.1]} 37. Rb6
{[%clk 0:00:44.9]} 37... Ra4 {[%clk 0:00:13.2]} 38. Rb3 {[%clk 0:00:44.6]} 38...
Rc4 {[%clk 0:00:14.6]} 39. h3 {[%clk 0:00:45.6]} 39... Ra4 {[%clk 0:00:15.9]}
40. Kf3 {[%clk 0:00:46.7]} 40... Rc4 {[%clk 0:00:17.3]} 41. Re3 {[%clk
0:00:47.5]} 41... Ra4 {[%clk 0:00:18.5]} 42. Re4 {[%clk 0:00:48.4]} 42... Ra3+
{[%clk 0:00:20]} 43. Kg2 {[%clk 0:00:49.6]} 43... Kf5 {[%clk 0:00:20.7]} 44. Rb4
{[%clk 0:00:50.3]} 44... Kg6 {[%clk 0:00:21.6]} 45. h4 {[%clk 0:00:38.4]} 45...
gxh4 {[%clk 0:00:22.5]} 46. Rxh4 {[%clk 0:00:38.7]} 46... Rc3 {[%clk 0:00:23.4]}
47. Rf4 {[%clk 0:00:39]} 47... Ra3 {[%clk 0:00:24.4]} 48. Rf3 {[%clk 0:00:40]}
48... Ra4 {[%clk 0:00:25.8]} 49. Rf4 {[%clk 0:00:36.8]} 49... Ra3 {[%clk
0:00:21.4]} 50. Kh3 {[%clk 0:00:37.7]} 50... Ra5 {[%clk 0:00:22.6]} 51. Rc4
{[%clk 0:00:37.4]} 51... Rh5+ {[%clk 0:00:21.7]} 52. Rh4 {[%clk 0:00:34.9]}
52... Ra5 {[%clk 0:00:22.7]} 53. Rb4 {[%clk 0:00:33]} 53... Rh5+ {[%clk
0:00:23.3]} 54. Kg4 {[%clk 0:00:34.1]} 54... Rg5+ {[%clk 0:00:24.9]} 55. Kf3
{[%clk 0:00:35.2]} 55... Ra5 {[%clk 0:00:26.1]} 56. Ke3 {[%clk 0:00:31.6]} 56...
Ra3+ {[%clk 0:00:25.1]} 57. Kf4 {[%clk 0:00:31.7]} 57... Ra2 {[%clk 0:00:23.4]}
58. f3 {[%clk 0:00:32.3]} 58... Ra3 {[%clk 0:00:24.8]} 59. g4 {[%clk 0:00:31.3]}
59... Rc3 {[%clk 0:00:26]} 60. Rb6 {[%clk 0:00:31.1]} 60... Rc4+ {[%clk
0:00:27.4]} 61. Kg3 {[%clk 0:00:32.3]} 61... Rc3 {[%clk 0:00:25.6]} 62. Ra6
{[%clk 0:00:32.2]} 62... Rb3 {[%clk 0:00:26.7]} 63. Rc6 {[%clk 0:00:32.8]} 63...
Ra3 {[%clk 0:00:27.8]} 64. Rc5 {[%clk 0:00:33.9]} 64... Rb3 {[%clk 0:00:28.3]}
65. Rc8 {[%clk 0:00:32.2]} 65... Ra3 {[%clk 0:00:29.3]} 66. Rg8+ {[%clk
0:00:32.6]} 66... Kf7 {[%clk 0:00:30.8]} 67. Rh8 {[%clk 0:00:33.7]} 67... Kg7
{[%clk 0:00:31.4]} 68. Rh5 {[%clk 0:00:34.7]} 68... Kg6 {[%clk 0:00:32.4]} 69.
Rc5 {[%clk 0:00:35.6]} 69... Rb3 {[%clk 0:00:33.6]} 70. Rc4 {[%clk 0:00:36.5]}
70... Ra3 {[%clk 0:00:34.7]} 71. Kf4 {[%clk 0:00:37.6]} 71... Rb3 {[%clk
0:00:35]} 72. Rd4 {[%clk 0:00:34.2]} 72... Ra3 {[%clk 0:00:36.1]} 73. Kg3 {[%clk
0:00:35.1]} 73... Rb3 {[%clk 0:00:37.2]} 74. Rd1 {[%clk 0:00:35.8]} 74... Ra3
{[%clk 0:00:38.3]} 75. Rf1 {[%clk 0:00:36.9]} 75... Rb3 {[%clk 0:00:39.5]} 76.
Kh4 {[%clk 0:00:37.7]} 76... Ra3 {[%clk 0:00:17.4]} 77. f4 {[%clk 0:00:33.8]}
77... Ra2 {[%clk 0:00:15.2]} 78. Rc1 {[%clk 0:00:31.5]} 78... Rh2+ {[%clk
0:00:15]} 79. Kg3 {[%clk 0:00:32.6]} 79... Ra2 {[%clk 0:00:16.1]} 80. Rc6 {[%clk
0:00:33.5]} 80... Ra3+ {[%clk 0:00:14.6]} 81. Kh4 {[%clk 0:00:32.6]} 81... Ra1
{[%clk 0:00:08.7]} 82. g5 {[%clk 0:00:23.9]} 82... Rh1+ {[%clk 0:00:09.4]} 83.
Kg3 {[%clk 0:00:25]} 83... Kf5 {[%clk 0:00:02.4]} 84. Rxf6+ {[%clk 0:00:25.1]}
84... Ke4 {[%clk 0:00:03.9]} 85. Kg2 {[%clk 0:00:20.6]} 85... Re1 {[%clk
0:00:02.8]} 1-0